fUSD/lending_fUSD_20240822
["ID","MTS","AMOUNT","RATE_DAILY","PERIOD"]
[335584920,1724340641122,-500.0,0.00010998,2]
[335584921,1724340641132,-500.0,0.00010998,2]
[335584922,1724340641141,-637.72,0.00010998,2]
[335584923,1724340641151,-500.0,0.00010998,2]
[335584924,1724340641162,-500.0,0.00010998,2]
[335584925,1724340641181,-376.16,0.00010998,2]
[335584926,1724340641190,-705.76,0.00010998,2]
[335584927,1724340641200,-705.76,0.00010998,2]
[335584928,1724340641210,-705.76,0.00010998,2]
[335584929,1724340641219,-705.76,0.00010998,2]
[335584930,1724340641228,-705.76,0.00010998,2]
[335584931,1724340641237,-705.76,0.00010998,2]
[335584932,1724340641247,-618.42,0.00010998,2]
[335584933,1724340641256,-618.42,0.00010998,2]
[335584934,1724340641265,-500.0,0.00010998,2]
[335584935,1724340641275,-500.0,0.00010998,2]
[335584936,1724340641284,-500.0,0.00010998,2]
[335584937,1724340641293,-500.0,0.00010998,2]
[335584938,1724340641303,-500.0,0.00010998,2]
[335584939,1724340641312,-500.0,0.00010998,2]
[335584940,1724340641321,-500.0,0.00010998,2]
[335584941,1724340641331,-500.0,0.00010998,2]
[335584942,1724340641344,-500.0,0.00010998,2]
[335584943,1724340641353,-500.0,0.00010998,2]
[335584944,1724340641362,-609.82,0.00010998,2]
[335584945,1724340641372,-500.0,0.00010998,2]
[335584946,1724340641384,-500.0,0.00010998,2]
[335584947,1724340641396,-500.0,0.00010998,2]
[335584948,1724340641405,-435.76,0.00010998,2]
[335584949,1724340641419,-500.0,0.00010998,2]
[335584950,1724340641430,-500.0,0.00010998,2]
[335584951,1724340641440,-462.3,0.00010998,2]
[335584952,1724340641451,-500.0,0.00010998,2]
[335584953,1724340641461,-500.0,0.00010998,2]
[335584954,1724340641471,-500.0,0.00010998,2]
[335584955,1724340641481,-598.08,0.00010998,2]
[335584956,1724340641491,-500.0,0.00010998,2]
[335584957,1724340641502,-500.0,0.00010998,2]
[335584958,1724340641513,-500.0,0.00010998,2]
[335584959,1724340641524,-500.0,0.00010998,2]
[335584960,1724340641535,-299.0,0.00010998,2]
[335584961,1724340641546,-500.0,0.00010998,2]
[335584962,1724340641559,-500.0,0.00010998,2]
[335584963,1724340641569,-500.0,0.00010998,2]
[335584964,1724340641579,-500.0,0.00010998,2]
[335584965,1724340641588,-500.0,0.00010998,2]
[335584966,1724340641598,-500.0,0.00010998,2]
[335584967,1724340641608,-500.0,0.00010998,2]
[335584968,1724340641618,-500.0,0.00010998,2]
[335584969,1724340641627,-500.0,0.00010998,2]
[335584970,1724340641637,-500.0,0.00010998,2]
[335584971,1724340641646,-500.0,0.00010998,2]
[335584972,1724340641655,-517.56,0.00010998,2]
[335584973,1724340641668,-773.14,0.00010998,2]
[335584974,1724340641677,-773.14,0.00010998,2]
[335584975,1724340641687,-773.14,0.00010998,2]
[335584976,1724340641696,-773.14,0.00010998,2]
[335584977,1724340641706,-773.14,0.00010998,2]
[335584978,1724340641715,-773.14,0.00010998,2]
[335584979,1724340641728,-500.0,0.00010998,2]
[335584980,1724340641737,-500.0,0.00010998,2]
[335584981,1724340641748,-500.0,0.00010998,2]
[335584982,1724340641758,-500.0,0.00010998,2]
[335584983,1724340641768,-500.0,0.00010998,2]
[335584984,1724340641778,-500.0,0.00010998,2]
[335584985,1724340641787,-206.35015276,0.00010998,2]
[335584986,1724340641808,-588.0,0.00010997,2]
[335584987,1724340641817,-252.77658634,0.00010998,2]
[335584988,1724340641836,-40.8732609,0.00010998,2]
[335584989,1724340641845,-500.0,0.00010998,2]
[335584990,1724340641855,-282.84836946,0.00010998,2]
[335584999,1724340643883,-1923.0,0.00010889,2]
[335585000,1724340643893,-217.15163054,0.00010998,2]
[335585001,1724340643903,-500.0,0.00010998,2]
[335585002,1724340643913,-500.0,0.00010998,2]
[335585003,1724340643924,-500.0,0.00010998,2]
[335585004,1724340643933,-500.0,0.00010998,2]
[335585005,1724340643943,-500.0,0.00010998,2]
[335585006,1724340643953,-500.0,0.00010998,2]
[335585007,1724340643963,-500.0,0.00010998,2]
[335585008,1724340643972,-90.71245872,0.00010998,2]
[335585009,1724340643984,-409.28754128,0.00010998,2]
[335585010,1724340643994,-500.0,0.00010998,2]
[335585011,1724340644003,-2841.91,0.00010998,2]
[335585012,1724340644013,-2841.91,0.00010998,2]
[335585013,1724340644023,-2841.91,0.00010998,2]
[335585014,1724340644033,-2841.91,0.00010998,2]
[335585015,1724340644043,-2841.91,0.00010998,2]
[335585016,1724340644053,-2841.91,0.00010998,2]
[335585017,1724340644063,-500.0,0.00010998,2]
[335585018,1724340644072,-660.97,0.00010998,2]
[335585019,1724340644082,-660.97,0.00010998,2]
[335585020,1724340644092,-660.97,0.00010998,2]
[335585021,1724340644102,-660.97,0.00010998,2]
[335585022,1724340644112,-660.97,0.00010998,2]
[335585023,1724340644122,-660.97,0.00010998,2]
[335585024,1724340644132,-500.0,0.00010998,2]
[335585025,1724340644141,-500.0,0.00010998,2]
[335585026,1724340644151,-500.0,0.00010998,2]
[335585027,1724340644161,-500.0,0.00010998,2]
[335585028,1724340644170,-500.0,0.00010998,2]
[335585029,1724340644180,-500.0,0.00010998,2]
[335585030,1724340644189,-593.96,0.00010998,2]
[335585031,1724340644200,-593.96,0.00010998,2]
[335585032,1724340644209,-593.96,0.00010998,2]
[335585033,1724340644219,-593.96,0.00010998,2]
[335585034,1724340644228,-593.96,0.00010998,2]
[335585035,1724340644238,-593.96,0.00010998,2]
[335585036,1724340644248,-500.0,0.00010998,2]
[335585037,1724340644259,-291.52629772,0.00010998,2]
[335585038,1724340644301,-208.47370228,0.00010998,2]
[335585039,1724340644311,-500.0,0.00010998,2]
[335585040,1724340644321,-500.0,0.00010998,2]
[335585041,1724340644331,-500.0,0.00010998,2]
[335585042,1724340644345,-435.67372972,0.00010998,2]
[335585043,1724340644357,-64.32627028,0.00010998,2]
[335585044,1724340644368,-500.0,0.00010998,2]
[335585045,1724340644379,-500.0,0.00010998,2]
[335585046,1724340644390,-500.0,0.00010998,2]
[335585047,1724340644399,-94.54801922,0.00010998,2]
[335585048,1724340644413,-405.45198078,0.00010998,2]
[335585049,1724340644428,-500.0,0.00010998,2]
[335585050,1724340644440,-500.0,0.00010998,2]
[335585051,1724340644449,-500.0,0.00010998,2]
[335585052,1724340644458,-459.26712513,0.00010998,2]
[335585055,1724340645819,-3728.0,0.00010889,2]
[335585057,1724340645829,-518.25,0.00010889,2]
[335585059,1724340645838,-268.36,0.00010923,2]
[335585061,1724340645847,-150.66075096,0.00010973,2]
[335585063,1724340645856,-500.0,0.00010973,2]
[335585065,1724340645865,-40.73287487,0.00010998,2]
[335585067,1724340645875,-500.0,0.00010998,2]
[335585069,1724340645884,-500.0,0.00010998,2]
[335585071,1724340645893,-500.0,0.00010998,2]
[335585073,1724340645902,-500.0,0.00010998,2]
[335585075,1724340645912,-108.06928758,0.00010998,2]
[335585077,1724340645927,-391.93071242,0.00010998,2]
[335585078,1724340645935,-158.02986662,0.00010998,2]
[335585085,1724340771206,725.45,0.00024657,120]
[335585086,1724340771469,725.45,0.00025342,120]
[335585087,1724340771736,725.45,0.00026027,120]
[335585088,1724340772025,725.45,0.00026712,120]
[335585089,1724340869312,367.66,8.219e-05,2]
[335585092,1724340938821,239.88,9.987e-05,2]
[335585093,1724340956707,181.19912338,0.0001,2]
[335585094,1724340974183,1050.0,0.0001,2]
[335585095,1724340987773,465.1436139,0.0001,2]
[335585096,1724340990089,228.77402808,0.00027,120]
[335585097,1724341038242,150.0,0.00027,120]
[335585098,1724341095123,377.15,9.981e-05,2]
[335585099,1724341342810,349.27,8.219e-05,2]
[335585100,1724341360325,604.54,0.00024657,120]
[335585101,1724341360596,604.54,0.00025342,120]
[335585102,1724341360883,604.54,0.00026027,120]
[335585103,1724341361289,604.54,0.00026712,120]
[335585105,1724341646906,10742.04021264,9.999e-05,2]
[335585111,1724341703241,1000.0,9.919e-05,2]
[335585112,1724341831636,331.8,8.219e-05,2]
[335585120,1724341832374,-190.0,0.00010023,2]
[335585121,1724341832384,-155.64199198,0.00010471,2]
[335585122,1724341832394,-257.38004002,0.00010471,2]
[335585123,1724341832408,-74.41995998,0.00010471,2]
[335585124,1724341832417,-180.528769,0.00010585,2]
[335585125,1724341832427,-872.50260712,0.00010699,2]
[335585126,1724341832436,-309.47911508,0.00010699,2]
[335585127,1724341832446,-1000.0,0.000107,2]
[335585128,1724341832455,-2030.8083719,0.00010713,2]
[335585129,1724341832464,-300.0,0.00010788,2]
[335585130,1724341832473,-300.0,0.00010788,2]
[335585131,1724341832483,-539.48154861,0.00010789,2]
[335585132,1724341832496,-150.0,0.00010789,2]
[335585133,1724341832505,-339.3648,0.00010789,2]
[335585134,1724341832514,-8978.41482833,0.0001079,2]
[335585135,1724341832525,-398.50178621,0.0001079,2]
[335585136,1724341832537,-579.74737754,0.0001079,2]
[335585137,1724341832548,-5904.17330261,0.0001079,2]
[335585138,1724341832560,-51851.54230531,0.0001079,2]
[335585140,1724341832569,-9779.48783269,0.0001079,2]
[335585142,1724341832580,-317.80108289,0.0001079,2]
[335585144,1724341832591,-389.595,0.0001079,2]
[335585146,1724341832602,-327.15148309,0.0001079,2]
[335585153,1724341838056,-382.40223958,0.00010713,2]
[335585154,1724341838173,-375.49626926,0.00010713,2]
[335585155,1724341838234,-18.07173066,0.00010713,2]
[335585156,1724341838245,-266.67195327,0.0001079,2]
[335585157,1724341838292,-749.49169814,0.0001079,2]
[335585158,1724341838304,-314.98680832,0.0001079,2]
[335585159,1724341838316,-9692.5644416,0.0001079,2]
[335585160,1724341838326,-1000.0,0.0001079,2]
[335585161,1724341838335,-11853.3953,0.0001079,2]
[335585162,1724341838344,-6696.297,0.0001079,2]
[335585163,1724341838353,-307.97022936,0.00010799,2]
[335585164,1724341838363,-265.66856408,0.00010799,2]
[335585165,1724341838372,-155.0,0.00010799,2]
[335585166,1724341838381,-298.82691546,0.00010799,2]
[335585167,1724341838390,-253.22695752,0.00010862,2]
[335585168,1724341838400,-330.46251231,0.00010862,2]
[335585169,1724341838409,-314.17562517,0.00010862,2]
[335585170,1724341838418,-328.33768382,0.00010862,2]
[335585171,1724341838428,-166.39780491,0.00010862,2]
[335585172,1724341838437,-255.3689167,0.00010888,2]
[335585173,1724341838447,-393.8276946,0.00010888,2]
[335585174,1724341838456,-491.20938587,0.00010888,2]
[335585175,1724341838465,-261.305,0.00010888,2]
[335585176,1724341838474,-1917.0,0.00010888,2]
[335585177,1724341838484,-1254.0,0.00010888,2]
[335585179,1724341838496,-1137.0,0.00010888,2]
[335585181,1724341838511,-647.223,0.00010888,2]
[335585183,1724341838522,-810.0,0.00010888,2]
[335585184,1724341838532,-447.0,0.00010888,2]
[335585186,1724341838541,-150.0,0.00010888,2]
[335585188,1724341838550,-1897.0,0.00010888,2]
[335585190,1724341838560,-552.0,0.00010888,2]
[335585192,1724341838569,-1158.0,0.00010888,2]
[335585194,1724341838578,-247.0,0.00010888,2]
[335585196,1724341838587,-764.0,0.00010888,2]
[335585198,1724341838597,-1205.0,0.00010888,2]
[335585200,1724341838606,-289.0,0.00010888,2]
[335585202,1724341838615,-2154.15630886,0.00010888,2]
[335585214,1724341838785,-1085.69645027,0.00010888,2]
[335585215,1724341838798,-417.41412219,0.00010888,2]
[335585216,1724341838809,-70.73311868,0.00010888,2]
[335585217,1724341838818,-525.09865554,0.00010888,2]
[335585218,1724341838830,-869.96684025,0.00010888,2]
[335585219,1724341838849,-278.93450421,0.00010888,2]
[335585220,1724341838858,-250.0,0.00010888,2]
[335585221,1724341838867,-1558.27852908,0.00010888,2]
[335585222,1724341838877,-277.50091724,0.00010888,2]
[335585223,1724341838888,-1227.02813688,0.00010888,2]
[335585224,1724341838899,-380.75662166,0.00010888,2]
[335585225,1724341838909,-434.17549126,0.00010888,2]
[335585226,1724341838928,-478.78039333,0.00010888,2]
[335585249,1724341840204,-308.74121053,0.00010888,2]
[335585250,1724341840215,-513.79518996,0.00010888,2]
[335585251,1724341840482,-372.1163726,0.00010888,2]
[335585252,1724341840495,-370.72995011,0.00010888,2]
[335585253,1724341840506,-340.8444992,0.00010888,2]
[335585295,1724341843141,-155.1937478,0.00010888,2]
[335585297,1724341843150,-235.81205064,0.00010888,2]
[335585299,1724341843162,-13179.49363751,0.00010888,2]
[335585300,1724341843171,-266.837,0.00010888,2]
[335585301,1724341843181,-216.0,0.00010888,2]
[335585303,1724341843190,-539.36,0.00010889,2]
[335585305,1724341843199,-576.37,0.00010889,2]
[335585307,1724341843209,-500.0,0.00010889,2]
[335585309,1724341843218,-500.0,0.00010889,2]
[335585311,1724341843228,-297.76,0.00010889,2]
[335585313,1724341843237,-500.0,0.00010889,2]
[335585315,1724341843247,-500.0,0.00010889,2]
[335585317,1724341843256,-500.0,0.00010889,2]
[335585318,1724341843265,-500.0,0.00010889,2]
[335585320,1724341843274,-546.14,0.00010889,2]
[335585322,1724341843283,-500.0,0.00010889,2]
[335585324,1724341843293,-500.0,0.00010889,2]
[335585326,1724341843302,-500.0,0.00010889,2]
[335585328,1724341843311,-500.0,0.00010889,2]
[335585330,1724341843321,-500.0,0.00010889,2]
[335585332,1724341843331,-500.0,0.00010889,2]
[335585333,1724341843340,-500.0,0.00010889,2]
[335585335,1724341843350,-500.0,0.00010889,2]
[335585337,1724341843359,-500.0,0.00010889,2]
[335585339,1724341843369,-11743.78091446,0.0001089,2]
[335585341,1724341843378,-564.78674,0.0001089,2]
[335585343,1724341843387,-371.22787731,0.0001089,2]
[335585345,1724341843396,-500.0,0.00010898,2]
[335585347,1724341843405,-3416.0425,0.00010898,2]
[335585349,1724341843415,-617.2331,0.00010898,2]
[335585351,1724341843424,-7500.0,0.00010899,2]
[335585353,1724341843434,-2464.98710796,0.00010899,2]
[335585355,1724341843443,-2183.51236515,0.00010899,2]
[335585357,1724341843452,-2183.51236506,0.00010899,2]
[335585359,1724341843462,-2183.51236506,0.00010899,2]
[335585361,1724341843471,-2183.51236506,0.00010899,2]
[335585363,1724341843480,-2183.51236506,0.00010899,2]
[335585365,1724341843489,-2183.51236506,0.00010899,2]
[335585367,1724341843500,-2183.51236506,0.00010899,2]
[335585369,1724341843509,-2183.51236506,0.00010899,2]
[335585371,1724341843519,-2183.51236506,0.00010899,2]
[335585373,1724341843529,-2464.98710796,0.00010899,2]
[335585375,1724341843541,-2464.98710796,0.000109,2]
[335585377,1724341843551,-2464.98710796,0.000109,2]
[335585378,1724341843561,-2464.98710796,0.000109,2]
[335585379,1724341843570,-977.69,0.000109,2]
[335585380,1724341843579,-790.76,0.000109,2]
[335585381,1724341843588,-2183.51236506,0.000109,2]
[335585382,1724341843597,-2000.0,0.00010959,2]
[335585384,1724341843606,-250.0,0.00010959,2]
[335585385,1724341843616,-156.19,0.00010959,2]
[335585386,1724341843626,-158.653,0.00010973,2]
[335585387,1724341843635,-370.32506365,0.00010997,2]
[335585388,1724341843644,-6658.74567236,0.00010997,2]
[335585389,1724341843654,-341.97013338,0.00010998,2]
[335585390,1724341843663,-500.0,0.00010998,2]
[335585391,1724341843672,-500.0,0.00010998,2]
[335585392,1724341843682,-500.0,0.00010998,2]
[335585393,1724341843691,-500.0,0.00010998,2]
[335585394,1724341843700,-500.0,0.00010998,2]
[335585395,1724341843710,-500.0,0.00010998,2]
[335585397,1724341843719,-500.0,0.00010998,2]
[335585399,1724341843729,-500.0,0.00010998,2]
[335585401,1724341843739,-500.0,0.00010998,2]
[335585403,1724341843752,-500.0,0.00010998,2]
[335585404,1724341843761,-500.0,0.00010998,2]
[335585405,1724341843771,-671.34,0.00010998,2]
[335585406,1724341843782,-500.0,0.00010998,2]
[335585407,1724341843791,-756.22,0.00010998,2]
[335585408,1724341843801,-500.0,0.00010998,2]
[335585409,1724341843810,-500.0,0.00010998,2]
[335585410,1724341843821,-500.0,0.00010998,2]
[335585411,1724341843833,-614.35,0.00010998,2]
[335585412,1724341843842,-500.0,0.00010998,2]
[335585413,1724341843852,-500.0,0.00010998,2]
[335585414,1724341843861,-500.0,0.00010998,2]
[335585415,1724341843871,-500.0,0.00010998,2]
[335585416,1724341843881,-500.0,0.00010998,2]
[335585417,1724341843891,-500.0,0.00010998,2]
[335585418,1724341843900,-500.0,0.00010998,2]
[335585419,1724341843910,-500.0,0.00010998,2]
[335585420,1724341843919,-3436.61,0.00010998,2]
[335585421,1724341843928,-3436.61,0.00010998,2]
[335585422,1724341843937,-254.80219249,0.00010998,2]
[335585423,1724341844182,-1327.1267658,0.00010998,2]
[335585424,1724341844193,-653.47448943,0.00010998,2]
[335585425,1724341845100,-370.7114912,0.00010998,2]
[335585426,1724341845114,-384.28030423,0.00010998,2]
[335585427,1724341845125,-379.85541049,0.00010998,2]
[335585428,1724341845140,-66.35934636,0.00010998,2]
[335585429,1724341845149,-325.16268312,0.00010998,2]
[335585431,1724341846060,-150.0,0.00010888,2]
[335585432,1724341846070,-234.06044353,0.00010998,2]
[335585433,1724341846080,-288.9311144,0.00010998,2]
[335585434,1724341846092,-2588.45575895,0.00010998,2]
[335585435,1724341846101,-3436.61,0.00010998,2]
[335585436,1724341846110,-3436.61,0.00010998,2]
[335585437,1724341846120,-500.0,0.00010998,2]
[335585438,1724341846129,-3436.61,0.00010998,2]
[335585439,1724341846138,-3436.61,0.00010998,2]
[335585440,1724341846147,-3436.61,0.00010998,2]
[335585441,1724341846156,-500.0,0.00010998,2]
[335585442,1724341846165,-500.0,0.00010998,2]
[335585443,1724341846175,-3400.41,0.00010998,2]
[335585444,1724341846184,-3400.41,0.00010998,2]
[335585445,1724341846193,-3400.41,0.00010998,2]
[335585446,1724341846202,-3400.41,0.00010998,2]
[335585447,1724341846211,-3400.41,0.00010998,2]
[335585448,1724341846221,-3400.41,0.00010998,2]
[335585449,1724341846230,-3400.41,0.00010998,2]
[335585450,1724341846239,-2325.62424105,0.00010998,2]
[335585451,1724341846334,-1074.78575895,0.00010998,2]
[335585452,1724341846343,-653.79477062,0.00010998,2]
[335585453,1724341846354,-381.94995556,0.00010998,2]
[335585454,1724341846368,-619.76020313,0.00010998,2]
[335585464,1724341956305,833.33,0.00024657,120]
[335585465,1724341956597,833.33,0.00025342,120]
[335585466,1724341956869,833.33,0.00026027,120]
[335585467,1724341957323,833.33,0.00026712,120]
[335585468,1724342345099,318.52,8.385e-05,2]
[335585469,1724342392093,678314.4057852,0.00027,120]
[335585470,1724342492343,13518.64083325,0.00025,60]
[335585471,1724342573228,18349.56639323,0.00012111,30]
[335585474,1724342789898,1050.0,0.0001,2]
[335585475,1724342828326,302.59,8.219e-05,2]
[335585478,1724342949581,376.28867597,0.00025,60]
[335585480,1724342969998,531.7934097,9.956e-05,2]
[335585490,1724343006780,363.46213793,0.0001,2]
[335585494,1724343032159,-180.0,0.00010032,2]
[335585495,1724343032171,-698.30190677,0.00010056,2]
[335585496,1724343032213,-301.69809323,0.00010056,2]
[335585497,1724343032223,-531.79340969,0.00010121,2]
[335585498,1724343032232,-531.79340969,0.00010285,2]
[335585499,1724343032242,-326.0,0.00010385,2]
[335585500,1724343032252,-302.59,0.00010475,2]
[335585501,1724343032263,-727.0,0.00010566,2]
[335585502,1724343032273,-111.68298559,0.00010566,2]
[335585503,1724343032285,-490.46366303,0.00010566,2]
[335585504,1724343032296,-697.89036063,0.00010566,2]
[335585505,1724343032308,-597.34227907,0.00010566,2]
[335585506,1724343032322,-445.26708207,0.00010566,2]
[335585507,1724343032331,-5.18227834,0.00010798,2]
[335585508,1724343032346,-144.81772166,0.00010798,2]
[335585509,1724343032358,-300.0,0.00010798,2]
[335585510,1724343032367,-2727.5689622,0.00010799,2]
[335585511,1724343032378,-881.42115809,0.00010799,2]
[335585512,1724343032390,-48000.0,0.00010799,2]
[335585513,1724343032401,-796.58810369,0.00010799,2]
[335585514,1724343032412,-2651.82067602,0.00010799,2]
[335585515,1724343032422,-1000.0,0.00010799,2]
[335585516,1724343032431,-765.64,0.00010808,2]
[335585517,1724343032440,-155.0,0.00010862,2]
[335585518,1724343032450,-256.92942599,0.00010888,2]
[335585519,1724343032459,-446.0,0.00010888,2]
[335585520,1724343032468,-1137.0,0.00010888,2]
[335585521,1724343032478,-60.05543855,0.00010888,2]
[335585522,1724343032489,-495.94456145,0.00010888,2]
[335585524,1724343032499,-520.858,0.00010888,2]
[335585526,1724343032508,-551.0,0.00010888,2]
[335585528,1724343032517,-580.685,0.00010888,2]
[335585530,1724343032527,-1158.0,0.00010888,2]
[335585532,1724343032536,-11743.78091446,0.0001089,2]
[335585534,1724343032545,-329.99434207,0.0001089,2]
[335585536,1724343032555,-298.82691546,0.0001089,2]
[335585538,1724343032564,-30594.6527,0.00010898,2]
[335585540,1724343032574,-2832.90726402,0.00010898,2]
[335585543,1724343032589,-490.71893598,0.00010898,2]
[335585545,1724343032598,-231.0028609,0.00010899,2]
[335585547,1724343032612,-268.9971391,0.00010899,2]
[335585549,1724343032621,-3531.0028609,0.00010899,2]
[335585551,1724343032633,-4062.7220391,0.00010899,2]
[335585553,1724343032643,-340.61511463,0.00010899,2]
[335585555,1724343032653,-314.17562517,0.00010899,2]
[335585556,1724343032663,-326.28228056,0.00010899,2]
[335585557,1724343032672,-326.28228055,0.000109,2]
[335585558,1724343032682,-326.28228055,0.000109,2]
[335585559,1724343032691,-493.88,0.00010959,2]
[335585560,1724343032701,-128.67874138,0.00010959,2]
[335585561,1724343032712,-1871.32125862,0.00010959,2]
[335585562,1724343032722,-250.0,0.00010959,2]
[335585563,1724343032731,-608.83789754,0.00010996,2]
[335585564,1724343032741,-420.63165209,0.00010997,2]
[335585565,1724343032750,-211.52985921,0.00010997,2]
[335585566,1724343032759,-527.04275523,0.00010997,2]
[335585567,1724343032768,-500.0,0.00010997,2]
[335585568,1724343032777,-500.0,0.00010997,2]
[335585569,1724343032786,-500.0,0.00010997,2]
[335585570,1724343032796,-500.0,0.00010997,2]
[335585571,1724343032805,-500.0,0.00010997,2]
[335585572,1724343032816,-500.0,0.00010997,2]
[335585573,1724343032825,-500.0,0.00010997,2]
[335585574,1724343032834,-500.0,0.00010997,2]
[335585575,1724343032844,-500.0,0.00010997,2]
[335585576,1724343032854,-500.0,0.00010997,2]
[335585577,1724343032865,-500.0,0.00010997,2]
[335585578,1724343032874,-481.12222325,0.00010997,2]
[335585579,1724343032883,-482.59281647,0.00010997,2]
[335585583,1724343038308,-314.17562517,0.00010899,2]
[335585584,1724343038318,-17.40718353,0.00010997,2]
[335585585,1724343038328,-152.1527404,0.00010997,2]
[335585586,1724343038341,-347.8472596,0.00010997,2]
[335585587,1724343038351,-500.0,0.00010997,2]
[335585588,1724343038363,-500.0,0.00010997,2]
[335585589,1724343038373,-500.0,0.00010997,2]
[335585590,1724343038382,-500.0,0.00010997,2]
[335585591,1724343038393,-500.0,0.00010997,2]
[335585592,1724343038403,-500.0,0.00010997,2]
[335585593,1724343038414,-500.0,0.00010997,2]
[335585594,1724343038425,-500.0,0.00010997,2]
[335585595,1724343038435,-500.0,0.00010997,2]
[335585596,1724343038446,-500.0,0.00010997,2]
[335585597,1724343038456,-500.0,0.00010997,2]
[335585598,1724343038466,-354.11072218,0.00010997,2]
[335585599,1724343038476,-2130.93264139,0.00010997,2]
[335585600,1724343038486,-1744.90507069,0.00010998,2]
[335585601,1724343038495,-500.0,0.00010998,2]
[335585602,1724343038504,-500.0,0.00010998,2]
[335585603,1724343038515,-500.0,0.00010998,2]
[335585605,1724343038524,-466.58,0.00010998,2]
[335585607,1724343038533,-500.0,0.00010998,2]
[335585609,1724343038543,-500.0,0.00010998,2]
[335585610,1724343038552,-500.0,0.00010998,2]
[335585612,1724343038562,-552.64516692,0.00010998,2]
[335585614,1724343038572,-500.0,0.00010998,2]
[335585616,1724343038581,-500.0,0.00010998,2]
[335585618,1724343038590,-155.3,0.00010998,2]
[335585620,1724343038599,-500.0,0.00010998,2]
[335585621,1724343038611,-500.0,0.00010998,2]
[335585623,1724343038624,-500.0,0.00010998,2]
[335585625,1724343038634,-500.0,0.00010998,2]
[335585626,1724343038644,-500.0,0.00010998,2]
[335585627,1724343038653,-500.0,0.00010998,2]
[335585629,1724343038663,-500.0,0.00010998,2]
[335585630,1724343038672,-500.0,0.00010998,2]
[335585631,1724343038682,-500.0,0.00010998,2]
[335585632,1724343038691,-500.0,0.00010998,2]
[335585633,1724343038701,-500.0,0.00010998,2]
[335585634,1724343038710,-500.0,0.00010998,2]
[335585635,1724343038719,-500.0,0.00010998,2]
[335585636,1724343038728,-500.0,0.00010998,2]
[335585637,1724343038738,-500.0,0.00010998,2]
[335585638,1724343038749,-500.0,0.00010998,2]
[335585639,1724343038759,-500.0,0.00010998,2]
[335585640,1724343038769,-500.0,0.00010998,2]
[335585641,1724343038780,-500.0,0.00010998,2]
[335585642,1724343038790,-500.0,0.00010998,2]
[335585643,1724343038801,-500.0,0.00010998,2]
[335585644,1724343038811,-500.0,0.00010998,2]
[335585645,1724343038822,-500.0,0.00010998,2]
[335585646,1724343038832,-500.0,0.00010998,2]
[335585647,1724343038842,-500.0,0.00010998,2]
[335585648,1724343038853,-500.0,0.00010998,2]
[335585649,1724343038865,-500.0,0.00010998,2]
[335585650,1724343038875,-500.0,0.00010998,2]
[335585651,1724343038885,-500.0,0.00010998,2]
[335585652,1724343038896,-500.0,0.00010998,2]
[335585653,1724343038905,-499.87476822,0.00010998,2]
[335585654,1724343038914,-500.0,0.00010998,2]
[335585655,1724343038924,-500.0,0.00010998,2]
[335585656,1724343038933,-500.0,0.00010998,2]
[335585657,1724343038943,-500.0,0.00010998,2]
[335585658,1724343038952,-500.0,0.00010998,2]
[335585659,1724343038961,-500.0,0.00010998,2]